bitfinex/quotes_SOLUSD_20250616
["timestamp","ask_amount","ask_price","bid_price","bid_amount"]
[1750093734590,4.71703323,157.84,157.81,13.93556935]
[1750093734801,4.71703323,157.83,157.82,7.59883531]
[1750093735600,3.30460522,157.85,157.82,7.59883531]
[1750093735784,4.71593221,157.84,157.82,13.9348144]
[1750093735986,3.30460522,157.85,157.82,13.9348144]
[1750093736209,4.71610342,157.84,157.82,13.9348144]
[1750093736410,3.30460522,157.85,157.82,13.9348144]
[1750093736704,4.71608797,157.84,157.82,102.7348144]
[1750093736924,3.30460522,157.85,157.82,102.7348144]
[1750093737113,4.71559093,157.84,157.82,102.7348144]
[1750093737415,3.30460522,157.85,157.82,102.7348144]
[1750093737712,4.71564565,157.84,157.82,102.7348144]
[1750093737886,3.30460522,157.85,157.82,102.7348144]
[1750093738186,4.7158706,157.84,157.82,102.7348144]
[1750093738389,3.30460522,157.85,157.82,102.7348144]
[1750093738590,4.71537935,157.84,157.82,102.7348144]
[1750093738787,3.30460522,157.85,157.82,102.7348144]
[1750093739085,4.71537419,157.84,157.82,102.7348144]
[1750093739281,3.30460522,157.85,157.82,95.13597909]
[1750093739483,4.71536401,157.84,157.82,95.13597909]
[1750093739686,3.30460522,157.85,157.82,95.13597909]
[1750093739891,4.71506934,157.84,157.82,95.13597909]
[1750093740096,3.30460522,157.85,157.82,95.13597909]
[1750093740410,10.90344053,157.85,157.82,88.8]
[1750093740585,12.45612601,157.84,157.82,88.8]
[1750093740788,4.71512913,157.83,157.82,88.8]
[1750093741923,4.71502674,157.83,157.82,88.8]
[1750093742601,4.71502674,157.83,157.8,102.73580287]
[1750093742788,7.74099688,157.84,157.8,102.73580287]
[1750093742985,12.31324546,157.83,157.8,88.8]
[1750093743219,4.71465463,157.82,157.8,88.8]
[1750093743384,7.74099688,157.82,157.8,88.8]
[1750093743580,12.31331836,157.81,157.8,88.8]
[1750093744007,12.31331836,157.81,157.78,6.33766007]
[1750093744223,7.59883531,157.81,157.78,6.33766007]
[1750093745110,7.59883531,157.81,157.77,121.38665729]
[1750093745807,7.59883531,157.81,157.77,113.78782198]
[1750093745994,12.31309923,157.8,157.77,107.44964886]
[1750093746201,7.59883531,157.8,157.77,107.44964886]
[1750093746405,7.59883531,157.81,157.77,121.38665161]
[1750093746609,4.71477747,157.8,157.77,121.38665161]
[1750093746802,7.59883531,157.81,157.77,121.38665161]
[1750093748525,10.90344053,157.85,157.8,7.59883531]
[1750093748725,3.30460522,157.85,157.82,7.59883531]
[1750093748918,3.30460522,157.85,157.82,88.8]
[1750093750310,3.30460522,157.85,157.83,6.33593106]
[1750093750511,4.71819223,157.84,157.83,6.33593106]
[1750093751433,4.7183743,157.84,157.83,6.33593106]
[1750093752627,4.7183743,157.84,157.83,32.58441523]
[1750093752833,7.07695001,157.87,157.83,121.38441523]
[1750093753035,29.16865087,157.89,157.83,121.38441523]
[1750093753036,4.71866816,157.86,157.85,18.64964886]
[1750093753217,4.71866685,157.86,157.85,18.64964886]
[1750093753933,4.71866685,157.86,157.85,32.58361245]
[1750093754455,4.72200107,157.86,157.85,32.58361245]
[1750093754642,23.08702561,157.89,157.85,32.58361245]
[1750093754947,4.71848977,157.88,157.87,18.64964886]
[1750093755112,4.71848977,157.88,157.87,107.44964886]
[1750093755816,4.71848977,157.88,157.87,113.78397457]
[1750093756224,4.71848977,157.88,157.87,121.38280988]
[1750093757209,4.72118428,157.88,157.87,121.38280988]
[1750093757406,4.72118428,157.88,157.87,113.78397457]
[1750093757632,4.72150895,157.88,157.87,121.38280988]
[1750093758140,16.00981556,157.89,157.87,121.38280988]
[1750093758439,16.00981556,157.89,157.88,18.64964886]
[1750093758641,20.72618258,157.89,157.88,18.64964886]
[1750093761337,20.72618258,157.89,157.88,26.24848417]
[1750093762420,16.00981556,157.89,157.88,26.24848417]
[1750093762735,20.72220297,157.89,157.88,26.24848417]
[1750093762943,16.00981556,157.89,157.88,26.24848417]
[1750093763242,20.72218416,157.89,157.88,26.24848417]
[1750093763434,20.72218416,157.89,157.88,115.04848417]
[1750093763848,20.72218416,157.89,157.88,107.44964886]
[1750093764240,28.32101947,157.89,157.88,88.8]
[1750093764466,20.72218416,157.89,157.88,88.8]
[1750093764945,0.14216157,157.88,157.85,88.8]
[1750093765122,4.70919259,157.87,157.85,88.8]
[1750093765436,7.59883531,157.88,157.85,88.8]
[1750093765643,4.70913628,157.87,157.85,88.8]
[1750093765844,4.70898179,157.86,157.85,88.8]
[1750093768251,11.04376424,157.86,157.83,18.64964886]
[1750093768426,4.70898179,157.85,157.83,18.64964886]
[1750093768623,6.33478245,157.86,157.83,18.64964886]
[1750093768942,6.33478245,157.86,157.82,18.64964886]
[1750093768943,12.30764123,157.85,157.82,18.64964886]
[1750093769125,4.7087291,157.84,157.82,18.64964886]
[1750093769324,7.59883531,157.85,157.82,18.64964886]
[1750093769537,12.30761673,157.84,157.81,18.64964886]
[1750093769937,18.64317031,157.84,157.81,18.64964886]
[1750093770134,13.93438889,157.84,157.81,18.64964886]
[1750093770529,7.59883531,157.82,157.79,18.64964886]
[1750093771057,0.14216157,157.84,157.8,7.59883531]
[1750093771240,7.74099688,157.84,157.8,7.59883531]
[1750093771438,12.31218779,157.83,157.79,26.24848417]
[1750093771664,4.71335248,157.82,157.79,26.24848417]
[1750093771850,7.59883531,157.83,157.79,26.24848417]
[1750093772157,4.71354098,157.82,157.79,26.24848417]
[1750093772461,7.59883531,157.82,157.79,18.64964886]
[1750093772666,12.31215468,157.81,157.77,18.64964886]
[1750093772965,7.59883531,157.81,157.77,26.24848417]
[1750093773464,7.59883531,157.8,157.77,18.64964886]
[1750093773972,4.71041055,157.82,157.73,88.8]
[1750093774183,7.59883531,157.78,157.74,18.64964886]
[1750093775447,4.71039557,157.77,157.74,24.98918199]
[1750093775639,9.9542213,157.8,157.76,18.64964886]
[1750093775839,4.71090947,157.79,157.76,18.64964886]
[1750093776162,4.71046625,157.78,157.76,18.64964886]
[1750093776350,4.71054776,157.79,157.76,18.64964886]
[1750093776549,7.59883531,157.8,157.76,18.64964886]
[1750093776756,7.59883531,157.82,157.78,7.59883531]
[1750093777071,4.71101155,157.81,157.78,7.59883531]
[1750093777274,7.59883531,157.82,157.78,18.64964886]
[1750093777569,4.71079879,157.81,157.78,18.64964886]
[1750093777773,7.59883531,157.82,157.78,18.64964886]
[1750093777944,4.71089453,157.81,157.78,18.64964886]
[1750093778143,3.30539895,157.81,157.78,18.64964886]
[1750093778558,7.59883531,157.79,157.74,88.8]
[1750093778747,7.59883531,157.75,157.72,18.64964886]
[1750093778948,7.59883531,157.76,157.72,18.64964886]
[1750093779351,12.30764357,157.76,157.72,18.64964886]
[1750093779556,7.59883531,157.76,157.72,18.64964886]
[1750093780474,12.30453632,157.76,157.72,18.64964886]
[1750093780854,7.59883531,157.75,157.72,18.64964886]
[1750093781053,7.59883531,157.74,157.71,88.8]
[1750093781268,7.59883531,157.73,157.71,88.8]
[1750093781468,7.59883531,157.75,157.72,18.64964886]
[1750093781673,14.09386648,157.76,157.72,18.64964886]
[1750093781996,4.7055844,157.75,157.72,24.98991593]
[1750093782179,33.59883531,157.77,157.72,32.58875124]
[1750093782569,39.9372399,157.77,157.72,32.58875124]
[1750093782770,4.70529091,157.76,157.72,32.58875124]
[1750093783085,4.70529091,157.76,157.72,18.64964886]
[1750093783086,7.59883531,157.75,157.72,18.64964886]
[1750093783265,12.30065086,157.76,157.72,18.64964886]
[1750093783581,7.59883531,157.74,157.72,18.64964886]
[1750093783787,7.59883531,157.74,157.71,88.8]
[1750093783984,7.59883531,157.75,157.72,18.64964886]
[1750093784190,71.62883531,157.76,157.72,18.64964886]
[1750093784504,39.937619,157.76,157.72,18.64964886]
[1750093785083,32.33878369,157.76,157.72,18.64964886]
[1750093785389,39.937619,157.76,157.72,18.64964886]
[1750093786291,7.59883531,157.76,157.72,32.58883143]
[1750093786693,11.4626425,157.78,157.72,113.78999612]
[1750093786694,4.69798088,157.78,157.72,113.78999612]
[1750093786904,33.59883531,157.79,157.74,7.59883531]
[1750093787098,7.59883531,157.78,157.74,7.59883531]
[1750093787391,7.59883531,157.78,157.73,121.38818187]
[1750093787788,7.59883531,157.78,157.74,7.59883531]
[1750093788094,7.59883531,157.78,157.73,113.78934656]
[1750093788294,7.59883531,157.78,157.74,7.59883531]
[1750093789611,13.93682072,157.78,157.73,121.38818187]
[1750093790514,7.59883531,157.78,157.73,121.38818187]
[1750093792189,7.59883531,157.78,157.74,13.9380574]
[1750093792397,39.93649728,157.79,157.74,13.9380574]
[1750093793005,39.93649728,157.79,157.75,18.64964886]
[1750093794798,13.93680097,157.78,157.75,18.64964886]
[1750093795321,7.59883531,157.77,157.74,88.8]
[1750093795523,7.59883531,157.75,157.74,88.8]
[1750093795721,7.59883531,157.75,157.71,18.64964886]
[1750093795924,7.59883531,157.73,157.7,18.64964886]
[1750093796496,7.59883531,157.71,157.68,18.64964886]
[1750093798529,3.30769962,157.71,157.7,7.59883531]
[1750093798826,15.84484241,157.79,157.72,18.64964886]
[1750093798827,7.59883531,157.79,157.72,18.64964886]
[1750093799034,3.30602663,157.77,157.75,7.59883531]
[1750093799237,10.2282019,157.8,157.76,26.24848417]
[1750093799390,13.13883531,157.8,157.76,26.24848417]
[1750093799594,16.44454995,157.8,157.76,26.24848417]
[1750093800819,16.44454995,157.8,157.7,114.8]
[1750093800820,7.59883531,157.77,157.72,7.59883531]
[1750093801143,7.59883531,157.76,157.72,26.24848417]
[1750093802362,7.59883531,157.77,157.72,32.5885602]
[1750093803822,13.93721555,157.77,157.72,32.5885602]
[1750093804030,7.59883531,157.76,157.72,24.98972489]
[1750093804622,7.59883531,157.74,157.7,18.64964886]
[1750093804823,7.59883531,157.74,157.7,107.44964886]
[1750093805122,7.59883531,157.74,157.7,121.38932214]
[1750093805546,7.59883531,157.74,157.7,115.04848417]
[1750093806263,12.29070289,157.77,157.73,18.64964886]
[1750093806439,7.59883531,157.77,157.73,7.59883531]
[1750093806759,7.59883531,157.77,157.73,18.64964886]
[1750093807161,7.59883531,157.77,157.71,18.64964886]
[1750093807338,7.59883531,157.77,157.73,18.64964886]
[1750093807834,12.29070289,157.78,157.74,7.59883531]
[1750093808035,12.29070289,157.78,157.75,18.64964886]
[1750093808759,12.29983088,157.78,157.75,18.64964886]
[1750093810833,4.70099557,157.77,157.75,18.64964886]
[1750093811037,7.59883531,157.78,157.75,18.64964886]
[1750093811259,4.70536397,157.77,157.75,18.64964886]
[1750093811448,3.30571464,157.8,157.76,26.24848417]
[1750093811644,4.70596352,157.79,157.76,18.64964886]
[1750093811960,4.70713236,157.78,157.76,18.64964886]
[1750093812261,7.59883531,157.79,157.76,18.64964886]
[1750093812834,4.70702699,157.78,157.76,18.64964886]
[1750093813048,7.59883531,157.78,157.75,88.8]
[1750093813252,4.70581294,157.77,157.75,88.8]
[1750093813454,7.59883531,157.79,157.75,88.8]
[1750093813630,12.30791818,157.78,157.75,88.8]
[1750093813831,4.70908287,157.77,157.75,88.8]
[1750093814033,7.59883531,157.78,157.75,88.8]
[1750093814336,12.30774744,157.77,157.73,18.64964886]
[1750093814574,7.59883531,157.77,157.73,18.64964886]
[1750093814733,4.71235295,157.76,157.73,18.64964886]
[1750093815052,7.59883531,157.77,157.73,18.64964886]
[1750093815251,4.71288227,157.76,157.73,18.64964886]
[1750093815457,12.31153844,157.75,157.73,18.64964886]
[1750093815668,7.59883531,157.75,157.73,18.64964886]
[1750093815876,7.21091508,157.78,157.72,26.24848417]
[1750093816075,4.71631161,157.77,157.73,7.59883531]
[1750093816272,9.20123531,157.79,157.74,7.59883531]
[1750093816455,14.67405049,157.78,157.73,7.59883531]
[1750093816652,4.71681012,157.77,157.73,7.59883531]
[1750093816854,4.71681012,157.76,157.73,7.59883531]
[1750093817157,4.71681012,157.75,157.73,7.59883531]
[1750093817354,7.59883531,157.77,157.73,7.59883531]
[1750093817589,4.71981696,157.76,157.73,7.59883531]
[1750093817764,4.71981696,157.75,157.73,7.59883531]
[1750093818089,4.71871019,157.78,157.74,7.59883531]
[1750093818090,2.35990692,157.78,157.74,7.59883531]
[1750093818247,4.72069649,157.77,157.74,7.59883531]
[1750093818452,4.72069649,157.76,157.75,18.64964886]
[1750093818658,4.72069649,157.76,157.75,24.98879307]
[1750093819656,4.72069649,157.76,157.75,32.58762838]
[1750093819973,4.72069649,157.76,157.75,18.64964886]
[1750093820149,4.72069649,157.76,157.74,88.8]
[1750093820349,4.72098651,157.75,157.74,18.64964886]
[1750093822367,4.72098651,157.75,157.74,24.98919494]
[1750093822694,4.71871019,157.79,157.75,18.64964886]
[1750093822986,4.71871019,157.81,157.78,7.59883531]
[1750093823176,11.80917582,157.8,157.78,7.59883531]
[1750093823382,3.30549746,157.81,157.75,107.44964886]
[1750093823383,11.80912739,157.79,157.76,13.93751407]
[1750093823704,14.68908913,157.78,157.75,88.8]
[1750093823878,7.09025382,157.77,157.75,88.8]
[1750093824077,4.7269448,157.76,157.74,18.64964886]
[1750093824282,4.7269448,157.75,157.74,32.58794994]
[1750093826285,4.72825082,157.75,157.74,32.58794994]
[1750093827083,4.71871019,157.79,157.74,32.58794994]
[1750093827275,35.78455818,157.81,157.74,32.58794994]
[1750093827276,7.09356976,157.78,157.77,26.24848417]
[1750093827472,7.09356976,157.78,157.77,115.04848417]
[1750093827694,4.72904741,157.78,157.77,115.04848417]
[1750093828295,7.08382039,157.82,157.77,115.04848417]
[1750093828499,7.09547765,157.81,157.8,18.64964886]
[1750093828815,7.09547765,157.81,157.79,7.59883531]
[1750093828816,19.41302315,157.81,157.79,88.8]
[1750093828973,19.41254907,157.8,157.79,88.8]
[1750093829174,22.76873606,157.8,157.79,88.8]
[1750093829385,27.48744625,157.8,157.79,88.8]
[1750093829701,22.76873606,157.8,157.79,88.8]
[1750093829888,27.48744625,157.8,157.79,88.8]
[1750093830209,22.76873606,157.8,157.79,88.8]
[1750093830500,27.48744625,157.8,157.79,88.8]
[1750093831903,27.48841471,157.8,157.79,88.8]
[1750093832476,20.39244268,157.8,157.79,88.8]
[1750093832676,27.49294813,157.8,157.79,88.8]
[1750093834383,27.49294813,157.8,157.71,49.47225247]
[1750093834384,0.14216157,157.79,157.71,88.8]
[1750093834643,7.59883531,157.75,157.72,18.64964886]
[1750093834798,4.7336309,157.74,157.72,18.64964886]
[1750093834995,4.7336309,157.73,157.72,18.64964886]
[1750093835499,4.7336309,157.73,157.72,32.58883415]
[1750093836395,2.36676511,157.76,157.72,32.58883415]
[1750093836604,4.73433352,157.75,157.72,32.58883415]
[1750093836794,19.61881254,157.79,157.72,32.58883415]
[1750093836795,2.36716451,157.76,157.75,18.64964886]
[1750093836993,7.1015251,157.76,157.75,18.64964886]
[1750093837381,4.73436059,157.76,157.75,18.64964886]
[1750093837907,7.10121819,157.76,157.75,18.64964886]
[1750093838408,4.73414546,157.76,157.75,18.64964886]
[1750093838713,4.73414546,157.76,157.75,32.58762838]
[1750093839210,4.73414546,157.76,157.75,121.38762838]
[1750093839518,4.71871019,157.78,157.75,115.04848417]
[1750093840215,4.71871019,157.79,157.75,115.04848417]
[1750093840514,4.71871019,157.78,157.75,115.04848417]
[1750093840804,4.71871019,157.79,157.75,115.04848417]
[1750093841010,12.3175455,157.78,157.75,107.44964886]
[1750093841216,7.10254892,157.77,157.75,107.44964886]
[1750093841409,4.73463906,157.76,157.75,107.44964886]
[1750093842415,4.73728798,157.76,157.75,107.44964886]
[1750093842787,4.73728798,157.76,157.75,115.04848417]
[1750093844703,4.73630622,157.81,157.75,115.04848417]
[1750093844900,11.84216022,157.8,157.79,18.64964886]
[1750093845219,11.84193677,157.8,157.78,88.8]
[1750093845392,7.10563055,157.79,157.78,107.44964886]
[1750093845820,11.84187888,157.79,157.78,88.8]
[1750093846019,19.44071419,157.79,157.78,88.8]
[1750093846328,19.72484919,157.79,157.78,88.8]
[1750093847188,24.46093415,157.79,157.78,84.04334023]
[1750093847920,24.17661101,157.79,157.78,84.04334023]
[1750093848101,11.84098888,157.79,157.78,84.04334023]
[1750093848494,19.88302532,157.79,157.78,84.04334023]
[1750093848702,15.14677699,157.79,157.78,84.04334023]
[1750093848900,15.1471306,157.79,157.78,84.04334023]
[1750093849116,10.41085109,157.79,157.76,7.59883531]
[1750093849419,11.84179203,157.78,157.76,18.64964886]
[1750093849592,9.47336217,157.77,157.76,18.64964886]
[1750093850114,9.47336217,157.77,157.75,18.64964886]
[1750093850115,4.73672905,157.77,157.75,18.64964886]
[1750093850312,4.73672905,157.76,157.75,102.69298909]
[1750093851087,7.10610943,157.76,157.75,102.69298909]
[1750093851725,0.14216157,157.75,157.7,84.04334023]
[1750093851901,0.14216157,157.75,157.71,18.64964886]
[1750093851902,14.70494474,157.74,157.71,18.64964886]
[1750093852224,12.33541709,157.73,157.7,18.64964886]
[1750093852390,4.73658178,157.72,157.7,18.64964886]
[1750093852695,4.73651224,157.71,157.7,18.64964886]
[1750093853100,4.73651224,157.71,157.68,7.59883531]
[1750093853101,4.73651224,157.71,157.68,26.24848417]
[1750093853397,7.59883531,157.73,157.68,26.24848417]
[1750093853599,4.73654777,157.72,157.68,26.24848417]
[1750093853823,4.7363078,157.71,157.68,26.24848417]
[1750093854007,7.59883531,157.73,157.68,26.24848417]
[1750093854213,4.73623278,157.72,157.68,26.24848417]
[1750093854413,4.73623278,157.71,157.68,26.24848417]
[1750093854617,7.59883531,157.73,157.68,26.24848417]
[1750093854823,7.59883531,157.73,157.65,25.86]
[1750093854824,7.59883531,157.71,157.65,44.64964886]
[1750093855125,14.70329237,157.7,157.65,115.04848417]
[1750093855324,4.73628926,157.69,157.65,26.24848417]
[1750093855529,7.59883531,157.7,157.66,6.3427629]
[1750093855730,4.72994997,157.69,157.66,13.94159821]
[1750093856019,13.93964538,157.71,157.66,13.94159821]
[1750093856230,4.73030113,157.7,157.66,13.94159821]
[1750093856421,4.73030113,157.69,157.66,13.94159821]
[1750093856619,9.96383331,157.71,157.66,13.94159821]
[1750093856924,4.73008099,157.7,157.66,13.94159821]
[1750093857148,9.9638765,157.71,157.66,13.94159821]
[1750093857149,4.73008099,157.69,157.66,13.94159821]
[1750093857325,4.73008099,157.68,157.66,13.94159821]
[1750093857528,7.59883531,157.7,157.66,13.94159821]
[1750093857717,4.72991903,157.69,157.66,13.94159821]
[1750093857918,4.72991903,157.68,157.66,13.94159821]
[1750093858119,7.59883531,157.7,157.66,13.94159821]
[1750093858433,23.80995736,157.72,157.7,18.64964886]
[1750093858434,22.27555736,157.72,157.7,18.64964886]
[1750093858642,4.7303089,157.71,157.7,18.64964886]
[1750093859316,22.27555736,157.72,157.7,18.64964886]
[1750093859525,4.72965183,157.71,157.7,18.64964886]
[1750093859731,4.72905221,157.71,157.7,18.64964886]
[1750093860415,4.72905221,157.71,157.7,26.24848417]
[1750093860729,22.27555736,157.72,157.71,18.64964886]
[1750093861041,22.27555736,157.72,157.71,115.04848417]
[1750093861227,22.27555736,157.72,157.71,107.44964886]
[1750093861430,22.27555736,157.72,157.71,115.04848417]
[1750093861632,22.27555736,157.72,157.71,121.38923618]
[1750093862718,22.27555736,157.72,157.71,32.58923618]
[1750093863715,22.27555736,157.72,157.71,121.38923618]
[1750093864413,22.27555736,157.72,157.71,32.58923618]
[1750093866938,22.27555736,157.72,157.71,36.38915539]
[1750093869822,22.27555736,157.72,157.71,125.18915539]
[1750093878128,4.73707596,157.76,157.75,18.64964886]
[1750093878450,1.5295,157.8,157.76,18.64964886]
[1750093878751,7.10552562,157.79,157.76,30.04840338]
[1750093878954,4.73698091,157.78,157.76,30.04840338]
[1750093879124,4.73698091,157.77,157.76,30.04840338]
[1750093879327,4.73698091,157.77,157.76,36.38714577]
[1750093879674,4.73704918,157.77,157.76,36.38714577]
[1750093879948,4.73704918,157.77,157.76,18.64964886]
[1750093880337,16.1358037,157.77,157.75,66.52444264]
[1750093880658,4.73704918,157.76,157.75,66.52444264]
[1750093880846,16.1358037,157.76,157.73,18.64964886]
[1750093881051,4.73704918,157.75,157.73,18.64964886]
[1750093881234,4.73704918,157.74,157.73,18.64964886]
[1750093881556,4.73600603,157.74,157.73,18.64964886]
[1750093881934,4.73600603,157.74,157.73,6.33994801]
[1750093882252,11.39875452,157.77,157.74,18.64964886]
[1750093882455,4.73507656,157.76,157.73,17.73870253]
[1750093882649,4.73507656,157.75,157.73,17.73870253]
[1750093882951,13.76648326,157.78,157.73,17.73870253]
[1750093883143,4.73494529,157.77,157.73,17.73870253]
[1750093883341,4.73494529,157.76,157.73,17.73870253]
[1750093883551,13.76648326,157.78,157.73,17.73870253]
[1750093883753,4.73500535,157.77,157.73,17.73870253]
[1750093883930,4.73500535,157.76,157.73,17.73870253]
[1750093884133,13.76648326,157.78,157.73,17.73870253]
[1750093884332,4.73492987,157.77,157.73,17.73870253]
[1750093884532,4.73492987,157.76,157.73,84.26314517]
[1750093884746,13.76648326,157.78,157.73,84.26314517]
[1750093884951,4.73424934,157.77,157.73,84.26314517]
[1750093885159,4.73424934,157.76,157.73,84.26314517]
[1750093885353,13.76648326,157.78,157.73,84.26314517]
[1750093885660,4.73411434,157.77,157.73,84.26314517]
[1750093885844,4.73411434,157.76,157.74,11.39875452]
[1750093886045,11.39875452,157.78,157.74,11.39875452]
[1750093886355,4.73378653,157.77,157.76,18.64964886]
[1750093886559,4.73378653,157.77,157.76,85.1740915]
[1750093886860,4.73378653,157.77,157.76,92.77010634]
[1750093887358,4.73331945,157.77,157.76,85.1740915]
[1750093887935,4.73331945,157.77,157.76,91.51283389]
[1750093889062,4.73331945,157.77,157.76,85.1740915]
[1750093889287,4.73331945,157.77,157.76,66.52444264]
[1750093889446,12.32933429,157.77,157.76,66.52444264]
[1750093890675,12.32933429,157.77,157.74,24.98902484]
[1750093890676,4.73331945,157.77,157.75,18.64964886]
[1750093890845,4.73331945,157.76,157.75,18.64964886]
[1750093891364,0.14216157,157.75,157.71,18.64964886]
[1750093891667,7.59601484,157.72,157.7,66.52444264]
[1750093892042,7.59601484,157.71,157.67,72.8667056]
[1750093892265,7.59601484,157.7,157.67,72.8667056]
[1750093892564,7.59601484,157.7,157.68,18.64964886]
[1750093893057,7.59601484,157.69,157.68,18.64964886]
[1750093893779,7.59601484,157.7,157.68,18.64964886]
[1750093894645,7.59601484,157.69,157.68,18.64964886]
[1750093894849,7.59601484,157.69,157.68,24.99160725]
[1750093895152,7.59601484,157.7,157.68,24.99160725]
[1750093895355,7.59601484,157.7,157.68,18.64964886]
[1750093895556,7.59601484,157.69,157.68,18.64964886]
[1750093896157,7.59601484,157.69,157.67,66.52444264]
[1750093896465,18.66463695,157.68,157.63,18.64964886]
[1750093896650,7.59601484,157.65,157.63,85.1740915]
[1750093896847,12.32231354,157.66,157.63,85.1740915]
[1750093897170,7.59601484,157.66,157.63,91.51802068]
[1750093897347,4.72446811,157.65,157.63,91.51802068]
[1750093897547,7.59601484,157.66,157.63,91.51802068]
[1750093897749,4.7247496,157.65,157.63,91.51802068]
[1750093897947,7.59601484,157.66,157.63,91.51802068]
[1750093898256,4.72476001,157.65,157.63,91.51802068]
[1750093898473,7.59601484,157.66,157.63,91.51802068]
[1750093898780,4.72460287,157.65,157.63,91.51802068]
[1750093898958,7.59601484,157.66,157.63,91.51802068]
[1750093899276,12.32079751,157.66,157.63,91.51802068]
[1750093899858,7.59601484,157.65,157.63,91.51802068]
[1750093901478,7.59601484,157.66,157.63,91.51802068]
[1750093901673,12.31454327,157.65,157.63,85.1740915]
[1750093901876,12.31454327,157.64,157.63,85.1740915]
[1750093902196,7.59601484,157.64,157.63,85.1740915]
[1750093902872,7.59601484,157.64,157.63,66.52444264]
[1750093904356,7.59601484,157.64,157.61,85.1740915]
[1750093904556,7.59601484,157.63,157.61,85.1740915]
[1750093908382,28.14240259,157.67,157.63,18.64964886]
[1750093908688,24.83363802,157.67,157.66,7.59601484]
[1750093909381,24.83363802,157.67,157.65,7.59601484]
[1750093909589,24.83363802,157.67,157.66,18.64964886]
[1750093909771,24.83363802,157.67,157.64,7.59601484]
[1750093910492,24.83363802,157.67,157.65,7.59601484]
[1750093911976,24.83363802,157.67,157.64,13.93955328]
[1750093913457,32.42965286,157.67,157.63,13.93986192]
[1750093914287,32.42965286,157.67,157.63,80.46430456]
[1750093914496,20.97547562,157.66,157.63,80.46430456]
[1750093914869,20.97547562,157.66,157.65,26.2456637]
[1750093916290,20.97547562,157.66,157.65,32.58882893]
[1750093920275,20.97547562,157.66,157.65,99.11327157]
[1750093925221,20.97547562,157.66,157.65,85.1740915]
[1750093925401,28.57149046,157.66,157.61,7.59601484]
[1750093925714,28.57149046,157.66,157.6,66.52444264]
[1750093925715,7.59601484,157.64,157.6,18.64964886]
[1750093926015,7.59601484,157.64,157.6,7.59601484]
[1750093926584,7.59601484,157.64,157.6,13.9408718]
[1750093927020,28.97853136,157.66,157.59,18.64964886]
[1750093927021,7.59601484,157.63,157.59,18.64964886]
[1750093927321,7.59601484,157.61,157.58,18.64964886]
[1750093927890,7.59601484,157.63,157.58,32.59154924]
[1750093928320,7.59601484,157.62,157.58,32.59154924]
[1750093928623,7.59601484,157.63,157.58,32.59154924]
[1750093929416,7.59601484,157.62,157.58,32.59154924]
[1750093932251,12.31158744,157.62,157.58,32.59154924]
[1750093932725,4.7155726,157.62,157.58,32.59154924]
[1750093933504,10.90547482,157.63,157.58,32.59154924]
[1750093934202,10.90547482,157.63,157.58,24.9955344]
[1750093934422,7.59601484,157.62,157.58,32.59154924]
[1750093935133,7.59601484,157.62,157.58,99.11599188]
[1750093936340,7.59601484,157.62,157.58,85.1740915]
[1750093936341,6.34457292,157.62,157.58,85.1740915]
[1750093936515,7.59601484,157.59,157.58,85.1740915]
[1750093936709,7.59601484,157.6,157.58,85.1740915]
[1750093938535,25.35320703,157.61,157.58,91.52005003]
[1750093939034,17.75719219,157.61,157.58,91.52005003]
[1750093939251,17.75719219,157.61,157.6,7.59601484]
[1750093939415,17.75719219,157.61,157.6,15.19202968]
[1750093939840,17.75719219,157.61,157.6,7.59601484]
[1750093940214,17.75719219,157.61,157.6,15.19202968]
[1750093940725,17.75719219,157.61,157.6,21.53720734]
[1750093940927,17.75719219,157.61,157.6,40.1868562]
[1750093941313,17.75719219,157.61,157.6,66.1868562]
[1750093942343,17.75719219,157.61,157.6,40.1868562]
[1750093942546,17.75719219,157.61,157.6,66.1868562]
[1750093942743,17.75719219,157.61,157.6,92.0668562]
[1750093942935,9.45699806,157.67,157.64,18.64964886]
[1750093943126,25.27218861,157.7,157.67,18.64964886]
[1750093943442,4.72843758,157.69,157.67,18.64964886]
[1750093943630,4.72843758,157.68,157.67,18.64964886]
[1750093943944,4.72839649,157.68,157.67,18.64964886]
[1750093944841,4.72839649,157.68,157.64,66.52444264]
[1750093945047,4.72839649,157.67,157.65,26.2456637]
[1750093945346,36.17627456,157.7,157.65,26.2456637]
[1750093945640,4.72803527,157.69,157.65,26.2456637]
[1750093945940,4.72803527,157.68,157.65,26.2456637]
[1750093946128,4.72803527,157.67,157.65,26.2456637]
[1750093946330,36.17627456,157.7,157.65,32.58879816]
[1750093946548,4.72808347,157.69,157.65,32.58879816]
[1750093946733,4.72805874,157.68,157.65,99.1132408]
[1750093947045,4.72805874,157.67,157.65,99.1132408]
[1750093947269,36.17627456,157.7,157.65,99.1132408]
[1750093947547,4.72732033,157.69,157.66,7.59601484]
[1750093947721,4.72732033,157.68,157.66,7.59601484]
[1750093947923,36.17627456,157.7,157.66,26.2456637]
[1750093947924,4.72732033,157.67,157.66,26.2456637]
[1750093948126,4.72732033,157.67,157.66,32.5884266]
[1750093948518,4.72732033,157.69,157.67,18.64964886]